bitfinex-derivatives/quotes_ETHF0:USTF0_20250214
["timestamp","ask_amount","ask_price","bid_price","bid_amount"]
[1739558627464,0.72336,2763.9,2763.8,0.00542751]
[1739558627764,41.52336,2763.9,2763.8,0.00542751]
[1739558628260,41.52336,2763.9,2763.8,3.21322751]
[1739558628556,2.66848,2764.5,2763.8,3.21322751]
[1739558628557,0.8604,2764.5,2763.8,3.21322751]
[1739558628764,0.72332,2764.1,2764.0,0.72333]
[1739558628963,0.7233,2764.2,2764.1,0.72329]
[1739558629166,0.72332,2764.1,2764.0,0.72333]
[1739558629466,0.7233,2764.2,2764.1,0.72331]
[1739558629962,0.72333,2764.1,2763.9,1.25925]
[1739558630262,0.72332,2764.1,2764.0,0.72332]
[1739558630467,0.72331,2764.1,2764.0,0.72332]
[1739558630858,40.8,2764.2,2763.9,0.5359]
[1739558631155,0.72336,2763.9,2763.8,3.21322751]
[1739558632572,0.72336,2763.9,2763.8,3.93661751]
[1739558633775,40.8,2764.2,2763.8,3.21322751]
[1739558634074,0.72333,2764.1,2764.0,0.72332]
[1739558634262,40.8,2764.2,2763.9,0.5525]
[1739558634569,41.52328,2764.2,2764.1,3.93111]
[1739558634769,41.52328,2764.2,2764.1,3.2078]
[1739558635172,40.8,2764.2,2764.1,3.93111]
[1739558636175,40.8,2764.2,2764.1,3.2078]
[1739558636176,41.52328,2764.2,2764.1,3.2078]
[1739558636478,0.72333,2764.0,2763.9,0.5525]
[1739558636676,0.72333,2764.0,2763.9,1.27586]
[1739558636877,0.72333,2764.0,2763.9,0.5525]
[1739558637077,0.72333,2764.1,2764.0,0.72332]
[1739558637277,40.8,2764.2,2764.1,0.72331]
[1739558637575,41.52328,2764.2,2764.1,3.2078]
[1739558638179,40.8,2764.2,2763.9,0.5525]
[1739558638369,0.72336,2763.9,2763.8,0.00542751]
[1739558638973,40.8,2764.2,2763.8,0.00542751]
[1739558639179,0.72336,2764.0,2763.9,0.72335]
[1739558640083,0.72336,2763.9,2763.8,0.72878751]
[1739558641080,0.72334,2764.0,2763.9,0.72334]
[1739558641580,40.8,2764.2,2763.8,0.00542751]
[1739558641781,0.72336,2763.9,2763.8,0.72879751]
[1739558642174,0.72336,2763.9,2763.8,3.21322751]
[1739558642376,0.72336,2763.9,2763.8,0.00542751]
[1739558643278,0.72344,2763.6,2763.5,3.2078]
[1739558643982,41.52344,2763.6,2763.5,3.2078]
[1739558644280,44.28349073,2763.6,2763.2,3.2078]
[1739558644481,0.72349,2763.4,2763.3,0.00542751]
[1739558649187,0.72349,2763.5,2763.3,0.00542751]
[1739558649384,0.72346,2763.6,2763.4,0.72347]
[1739558649590,40.8,2763.7,2763.4,0.72347]
[1739558649791,0.72346,2763.5,2763.4,0.72347]
[1739558650288,40.8,2763.7,2763.3,1.74832751]
[1739558650489,40.8,2763.7,2763.6,3.93124]
[1739558651083,0.00542751,2763.8,2763.7,0.72341]
[1739558651491,40.80542751,2763.8,2763.7,0.72341]
[1739558653991,0.00542751,2763.8,2763.7,0.72341]
[1739558654185,1.26935,2764.8,2764.3,0.72324]
[1739558654485,40.8,2764.4,2764.3,3.2078]
[1739558654688,40.8,2764.4,2764.3,3.93106]
[1739558657285,40.8,2764.4,2764.3,4.46626]
[1739558660888,41.52323,2764.4,2764.3,3.2078]
[1739558661087,40.8,2764.4,2764.3,3.93106]
[1739558661393,41.52323,2764.4,2764.3,3.2078]
[1739558661891,41.52323,2764.4,2764.3,3.93106]
[1739558661892,40.8,2764.4,2764.3,3.93106]
[1739558663989,40.8,2764.4,2763.9,3.2078]
[1739558664195,2.77789221,2764.3,2763.9,3.2078]
[1739558664395,0.72332,2764.1,2764.0,0.72333]
[1739558664595,0.5391,2764.2,2763.9,3.2078]
[1739558664796,40.8,2764.4,2763.9,3.2078]
[1739558665389,0.72331,2764.2,2764.1,0.72331]
[1739558665887,40.8,2764.4,2763.9,3.2078]
[1739558666290,0.7233,2764.2,2764.1,0.7233]
[1739558666591,40.8,2764.4,2764.3,0.72326]
[1739558666991,0.7233,2764.2,2764.1,0.72328]
[1739558668296,0.72332,2764.1,2764.0,0.72332]
[1739558668795,0.72332,2764.2,2764.1,0.72331]
[1739558669390,40.8,2764.4,2763.9,3.2078]
[1739558669586,0.72333,2764.1,2764.0,0.7233]
[1739558670603,0.72342,2763.7,2763.6,1.29623]
[1739558671397,0.7234,2763.8,2763.7,0.72338]
[1739558671600,0.72342,2763.7,2763.6,1.29622]
[1739558671796,0.5619,2764.0,2763.6,0.5728]
[1739558671997,42.558,2764.4,2763.8,3.2078]
[1739558672206,0.72336,2764.0,2763.9,0.72334]
[1739558673201,0.72336,2763.9,2763.8,3.93116]
[1739558673402,0.72336,2763.9,2763.8,3.93115]
[1739558673596,0.72336,2764.0,2763.9,0.72333]
[1739558675293,0.72336,2764.0,2763.8,3.2078]
[1739558675294,1.80818,2764.3,2763.8,3.2078]
[1739558675494,1.80818,2764.3,2763.8,3.93117]
[1739558675495,0.72336,2763.9,2763.8,3.93117]
[1739558675699,40.8,2764.4,2763.8,5.98569221]
[1739558675891,0.72328,2764.3,2764.2,0.72326]
[1739558676093,40.8,2764.4,2764.1,3.2078]
[1739558676299,40.8,2764.4,2764.2,0.5706]
[1739558676499,0.72326,2764.3,2764.2,0.72328]
[1739558677199,41.52326,2764.4,2764.3,0.72326]
[1739558677391,0.72328,2764.3,2764.2,0.72327]
[1739558677594,0.72328,2764.2,2764.1,3.93109]
[1739558678105,0.72328,2764.3,2764.2,0.72326]
[1739558678607,40.8,2764.4,2764.1,3.93109]
[1739558678608,0.72328,2764.2,2764.1,3.93109]
[1739558679305,40.8,2764.4,2764.1,3.2078]
[1739558679807,0.72328,2764.3,2764.2,0.72326]
[1739558681300,0.72328,2764.3,2764.2,0.72328]
[1739558681502,40.8,2764.4,2764.3,0.72326]
[1739558682292,41.52323,2764.4,2764.3,0.72326]
[1739558683602,40.8,2764.4,2764.3,0.72326]
[1739558683910,41.52323,2764.4,2764.3,0.72326]
[1739558684099,40.8,2764.4,2764.3,0.72326]
[1739558684300,41.52323,2764.4,2764.3,0.72326]
[1739558685306,40.8,2764.4,2764.1,3.2078]
[1739558685505,0.72328,2764.2,2764.1,3.2078]
[1739558685709,42.6081,2764.4,2764.0,0.5702]
[1739558686010,42.6081,2764.4,2763.9,1.84575]
[1739558686011,0.72334,2764.0,2763.9,1.84575]
[1739558686202,0.72334,2764.0,2763.9,1.29395]
[1739558688106,0.72333,2764.1,2764.0,0.72331]
[1739558691518,0.72334,2764.0,2763.9,1.86493]
[1739558692412,0.72334,2764.1,2764.0,0.7233]
[1739558694910,0.72334,2764.0,2763.9,1.86495]
[1739558695105,0.72334,2764.0,2763.9,1.1416]
[1739558695719,0.72342,2763.7,2763.6,1.31173]
[1739558695906,5.60604,2763.9,2763.4,1.80918]
[1739558696105,0.72347,2763.5,2763.4,1.0857]
[1739558696716,41.52347,2763.5,2763.4,1.0857]
[1739558696918,0.72349,2763.4,2763.3,0.00542751]
[1739558697211,0.72349,2763.4,2763.3,0.72894751]
[1739558697416,0.72349,2763.4,2763.3,0.00542751]
[1739558699112,3.50138221,2763.4,2763.3,0.00542751]
[1739558700419,0.72362,2762.9,2762.8,0.5632]
[1739558701319,3.7445,2763.3,2762.9,0.72361]
[1739558701515,0.00542751,2763.1,2762.8,0.5632]
[1739558701714,0.00542751,2763.1,2763.0,0.7236]
[1739558702018,40.8,2763.5,2762.8,0.5632]
[1739558702019,0.72356,2763.2,2763.1,0.72356]
[1739558702220,2.77789221,2764.2,2763.1,2.77789221]
[1739558702512,40.8,2764.2,2763.6,3.2078]
[1739558702710,0.72332,2764.1,2764.0,0.72333]
[1739558702910,40.8,2764.2,2763.9,3.2078]
[1739558703121,41.5233,2764.2,2763.9,3.2078]
[1739558703419,41.5233,2764.2,2764.0,0.72334]
[1739558703615,0.00542751,2764.3,2764.2,0.72328]
[1739558703918,0.00542751,2764.3,2764.2,3.93108]
[1739558705415,40.8,2764.7,2764.6,0.72318]
[1739558705613,40.8,2764.7,2764.6,3.93098]
[1739558706019,40.8,2764.7,2764.6,5.06118]
[1739558706715,7.51e-06,2764.9,2764.8,0.72313]
[1739558706927,7.51e-06,2764.9,2764.8,3.50102221]
[1739558707914,5.98569221,2766.0,2764.8,3.50102221]
[1739558707915,2.77789221,2767.1,2765.0,3.2078]
[1739558708115,3.2078,2766.8,2766.1,3.2078]
[1739558708316,3.2078,2766.3,2765.5,4.3499]
[1739558708511,5.98569221,2766.3,2765.5,4.8937]
[1739558708813,5.98569221,2766.0,2765.5,3.2078]
[1739558709015,40.8,2765.9,2765.6,0.00542751]
[1739558709317,41.52286,2765.9,2765.6,0.00542751]
[1739558709927,40.8,2765.9,2765.6,0.00542751]
[1739558710225,40.8,2765.9,2765.8,3.93067]
[1739558710717,40.8,2765.9,2765.8,3.2078]
[1739558711121,40.8,2765.9,2765.8,3.93067]
[1739558713022,0.00542751,2766.2,2766.1,0.72279]
[1739558713229,0.00542751,2766.2,2766.1,3.93059]
[1739558713423,0.72251,2767.2,2766.8,0.72259]
[1739558713726,40.8,2767.1,2766.5,3.2078]
[1739558713922,0.72257,2767.0,2766.5,3.93047]
[1739558714223,40.8,2767.1,2766.5,3.2078]
[1739558714730,40.80359283,2767.1,2766.9,0.72257]
[1739558715223,0.72256,2767.0,2766.8,3.2078]
[1739558715532,0.72257,2767.0,2766.8,3.2078]
[1739558715827,40.80359283,2767.1,2766.8,3.2078]
[1739558716029,0.72258,2766.9,2766.6,0.72264]
[1739558716235,40.80359283,2767.1,2766.4,4.9628]
[1739558716530,0.7226,2766.9,2766.4,4.9628]
[1739558716729,40.80359283,2767.1,2766.6,0.72263]
[1739558716931,6.68373128,2767.0,2766.1,3.2078]
[1739558717119,0.72289,2765.7,2765.6,0.00542751]
[1739558717828,40.8,2765.7,2765.6,0.00542751]
[1739558718026,40.8,2765.7,2765.6,0.72834751]
[1739558718227,40.8,2765.7,2765.6,4.20427879]
[1739558718532,41.52289,2765.7,2765.6,0.00542751]
[1739558718832,40.8,2765.7,2765.2,3.2078]
[1739558719021,0.723,2765.3,2765.2,3.2078]
[1739558719422,0.723,2765.3,2764.8,0.5693]
[1739558719423,0.72303,2765.2,2765.0,0.72306]
[1739558719625,0.72307,2765.0,2764.8,0.5693]
[1739558719823,3.2078,2765.6,2764.8,0.5693]
[1739558720026,3.2078,2765.6,2764.9,3.2078]
[1739558720233,0.00542751,2765.2,2764.9,3.2078]
[1739558720738,0.00542751,2765.2,2765.0,0.72306]
[1739558721631,0.00542751,2765.2,2764.9,3.2078]
[1739558721833,0.72846751,2765.2,2764.9,3.93089]
[1739558722034,0.00542751,2765.2,2765.0,0.72305]
[1739558722330,0.00542751,2765.2,2765.1,0.72305]
[1739558722525,0.723,2765.3,2765.0,4.19899128]
[1739558722726,40.8,2765.7,2765.0,0.72306]
[1739558722922,0.72301,2765.3,2765.0,0.72306]
[1739558723128,0.72303,2765.2,2764.9,3.93088]
[1739558723532,0.72307,2765.1,2764.9,3.2078]
[1739558723731,0.00359283,2765.3,2764.9,3.2078]
[1739558724623,0.72304,2765.2,2764.9,3.93089]
[1739558724823,0.72304,2765.2,2764.9,3.2078]
[1739558725036,0.00359283,2765.3,2765.1,0.72303]
[1739558725228,0.00359283,2765.3,2765.2,3.2078]
[1739558725427,0.00359283,2765.3,2765.2,3.93082]
[1739558725629,0.56,2766.3,2765.6,0.7229]
[1739558725830,0.72285,2765.9,2765.6,3.9307]
[1739558726227,0.72285,2765.9,2765.6,3.2078]
[1739558726429,0.72288,2765.8,2765.6,3.2078]
[1739558726831,40.8,2766.2,2765.6,3.93071]
[1739558727041,40.8,2766.2,2765.6,3.2078]
[1739558727732,0.72296,2765.5,2765.3,3.61539]
[1739558727930,0.72297,2765.4,2765.3,1.1384]
[1739558728129,0.72289,2765.8,2765.6,0.72291]
[1739558728431,0.72287,2765.8,2765.7,0.72289]
[1739558728632,0.72289,2765.7,2765.5,0.72292]
[1739558728831,3.2078,2766.0,2765.6,0.5696]
[1739558729031,40.8,2765.9,2765.6,0.5696]
[1739558729441,0.72289,2765.7,2765.6,0.5696]
[1739558730338,40.8,2765.9,2765.7,0.72288]
[1739558730339,0.72288,2765.8,2765.7,0.72288]
[1739558730535,40.8,2765.9,2765.6,1.2925]
[1739558730731,40.8,2765.9,2765.6,0.5696]
[1739558730936,0.72289,2765.7,2765.6,0.5696]
[1739558731139,40.8,2765.9,2765.5,3.2078]
[1739558731328,0.72292,2765.6,2765.5,3.2078]
[1739558731537,0.72297,2765.4,2765.3,3.04288]
[1739558731841,0.72297,2765.4,2765.3,2.3199]
[1739558732236,1.80727,2765.7,2765.2,3.2078]
[1739558732438,0.72299,2765.4,2765.3,0.72298]
[1739558733435,42.60711,2765.9,2765.2,3.2078]
[1739558733639,0.72294,2765.5,2765.4,0.72295]
[1739558734241,40.8,2765.9,2765.2,6.68373128]
[1739558734438,0.72289,2765.7,2765.6,3.93071]
[1739558734838,0.72289,2765.7,2765.6,3.2078]
[1739558735043,40.8,2765.9,2765.6,3.2078]
[1739558735243,0.72289,2765.7,2765.6,3.9307]
[1739558735546,40.8,2765.9,2765.6,3.2078]
[1739558735742,0.72288,2765.8,2765.7,0.72289]
[1739558735945,0.72289,2765.7,2765.6,3.9307]
[1739558736147,0.72289,2765.7,2765.6,3.2078]
[1739558736347,0.72289,2765.7,2765.6,3.93072]
[1739558736642,0.72289,2765.7,2765.6,3.9307]
[1739558737238,40.8,2765.9,2765.6,3.2078]
[1739558737443,0.72289,2765.8,2765.7,0.72288]
[1739558737643,41.52287,2765.9,2765.8,0.72286]
[1739558737845,40.8,2765.9,2765.6,3.2078]
[1739558738048,0.72289,2765.8,2765.7,0.72287]
[1739558738246,0.72289,2765.7,2765.6,3.9307]
[1739558738447,0.72289,2765.7,2765.6,3.2078]
[1739558738643,0.72289,2765.8,2765.7,0.72287]
[1739558738850,41.52286,2765.9,2765.8,0.72286]
[1739558739044,40.8,2765.9,2765.8,0.72286]
[1739558739550,41.52284,2765.9,2765.8,0.72286]
[1739558740251,40.8,2765.9,2765.8,0.72286]
[1739558740452,41.52284,2765.9,2765.8,0.72286]
[1739558740950,0.72289,2765.7,2765.6,4.4863]
[1739558741138,40.8,2765.9,2765.6,3.7634]
[1739558741543,0.72292,2765.7,2765.6,3.9307]
[1739558741752,0.72289,2765.8,2765.7,0.72287]
[1739558744347,40.8,2765.9,2765.8,0.72286]
[1739558744553,0.56,2766.3,2765.7,2.77560313]
[1739558744851,0.72281,2766.0,2765.9,3.93062]
[1739558745151,40.8,2766.0,2765.9,3.93062]
[1739558745952,0.72268,2766.5,2766.4,0.72269]
[1739558746155,0.72267,2766.6,2766.3,3.2078]
[1739558746451,40.8,2766.5,2766.3,3.93052]
[1739558746653,0.72271,2766.4,2766.3,3.93052]
[1739558746850,0.72271,2766.4,2766.3,3.2078]
[1739558748352,0.72271,2766.4,2766.3,3.93053]
[1739558748557,40.8,2766.5,2766.3,3.93053]
[1739558748558,40.8,2766.5,2766.4,0.72271]
[1739558748756,0.72271,2766.4,2766.3,3.93053]
[1739558749053,0.72271,2766.4,2766.3,3.2078]
[1739558749255,0.72271,2766.4,2766.3,3.93053]
[1739558749454,0.72271,2766.4,2766.3,3.2078]
[1739558749650,0.72273,2766.3,2766.2,0.00542751]
[1739558750156,0.72273,2766.3,2766.2,0.72818751]
[1739558750451,0.3268,2766.4,2766.3,0.72273]
[1739558750649,41.5227,2766.5,2766.4,0.72271]
[1739558750852,40.8,2766.5,2766.4,0.72271]
[1739558751251,40.8,2766.5,2766.4,3.93051]
[1739558751663,41.52268,2766.5,2766.4,0.72271]
[1739558752354,40.8,2766.5,2766.4,0.72271]
[1739558752752,41.52268,2766.5,2766.4,0.72271]
[1739558753153,40.8,2766.5,2766.4,0.72271]
[1739558754056,3.2078,2768.3,2766.4,11.55120626]
[1739558754354,0.5569,2767.9,2767.6,2.77560313]
[1739558754559,3.2078,2767.7,2766.8,3.2078]
[1739558754758,0.72258,2766.9,2766.8,3.2078]
[1739558755062,0.72257,2767.0,2766.8,3.2078]
[1739558755261,40.8,2766.9,2766.8,3.2078]
[1739558755661,41.52258,2766.9,2766.8,3.2078]
[1739558755965,40.8,2766.9,2766.8,3.9304]
[1739558756661,0.72244,2767.5,2767.2,0.72248]
[1739558756965,0.72247,2767.3,2767.1,0.72251]
[1739558757160,40.8,2767.2,2767.1,0.72251]
[1739558758865,0.5569,2767.9,2767.0,5.98340313]
[1739558759164,0.72235,2767.8,2767.5,3.2078]
[1739558759359,40.8,2767.7,2767.6,3.49799313]
[1739558759558,40.8,2767.7,2767.6,4.07879313]
[1739558760864,40.8,2767.7,2767.5,3.2078]
[1739558761167,40.8,2767.7,2767.6,0.72239]
[1739558761666,40.8,2767.7,2767.6,3.49799313]
[1739558764060,3.23216355,2769.1,2768.0,1.80568]
[1739558764262,3.23216355,2769.1,2768.3,2.77560313]
[1739558764465,0.72219,2768.4,2768.3,2.77560313]
[1739558764772,41.1262,2769.0,2768.5,0.72215]
[1739558765066,0.72212,2768.7,2768.4,3.2078]
[1739558765369,41.1262,2769.0,2768.4,3.2078]
[1739558765563,0.7221,2768.8,2768.6,0.72212]
[1739558765768,41.1262,2769.0,2768.4,3.2078]
[1739558765969,0.7221,2768.8,2768.6,0.72211]
[1739558766170,41.1262,2769.0,2768.6,0.72211]
[1739558766374,41.1262,2769.0,2768.4,3.2078]
[1739558766564,40.8,2769.0,2768.9,0.72206]
[1739558767272,40.8,2769.0,2768.9,3.49766313]
[1739558769166,0.72194,2769.4,2768.9,2.77560313]
[1739558769362,0.72194,2769.4,2768.8,1.1546]
[1739558769363,0.72181,2769.9,2769.7,0.72184]
[1739558769669,40.8,2769.8,2769.4,3.2078]
[1739558770273,0.72193,2769.4,2769.3,0.00541761]
[1739558770772,7.751,2769.4,2768.1,3.2078]
[1739558770978,0.72223,2768.3,2768.1,3.2078]
[1739558771166,40.8,2768.2,2768.1,3.93005]
[1739558771367,41.52224,2768.2,2768.1,3.93005]
[1739558771568,41.52224,2768.2,2768.1,3.2078]
[1739558771767,0.72229,2768.0,2767.9,0.567]
[1739558771969,0.72229,2768.0,2767.9,0.57241761]
[1739558772175,0.72229,2768.0,2767.9,0.00541761]
[1739558773072,0.72229,2768.0,2767.4,3.2078]
[1739558773073,0.72242,2767.5,2767.4,3.2078]
[1739558773371,0.72242,2767.5,2767.2,0.7225]
[1739558773372,0.72242,2767.5,2767.2,0.72249]
[1739558773572,0.72248,2767.3,2767.0,5.68134]
[1739558773771,0.72248,2767.3,2767.0,3.93034]
[1739558773975,40.8,2767.2,2767.1,0.72253]
[1739558774380,0.72253,2767.1,2766.9,0.00541761]
[1739558774675,0.72255,2767.0,2766.9,0.00541761]
[1739558775474,40.8,2767.2,2766.9,0.00541761]
[1739558775875,0.72255,2767.0,2766.9,0.00541761]
[1739558782584,40.8,2767.2,2766.9,0.00541761]
[1739558782889,0.72255,2767.0,2766.9,0.00541761]
[1739558790991,0.72266,2766.6,2766.5,0.5894]
[1739558791193,6.68264515,2766.8,2766.2,3.7852]
[1739558791401,0.72286,2765.9,2765.8,0.72284]
[1739558791895,40.8,2765.9,2765.8,0.72284]
[1739558793695,0.00541761,2766.1,2765.8,0.72284]
[1739558793696,0.00541761,2766.1,2766.0,0.72281]
[1739558793900,0.00541761,2766.1,2766.0,3.93061]
[1739558795197,40.8,2766.5,2766.4,0.72271]
[1739558795498,0.72262,2766.8,2766.7,0.72261]
[1739558795797,0.72262,2766.8,2766.7,3.93041]
[1739558795999,0.72262,2766.8,2766.7,3.2078]
[1739558796296,0.72266,2766.7,2766.6,0.72266]
[1739558796793,0.72266,2766.7,2766.5,1.135]
[1739558796794,1.81184761,2767.0,2766.5,1.135]
[1739558796993,0.72265,2766.7,2766.6,0.72263]
[1739558797492,1.81184761,2767.0,2766.5,1.135]
[1739558797493,0.72266,2766.6,2766.5,1.135]
[1739558798293,0.72275,2766.3,2766.2,0.72274]
[1739558798598,0.72275,2766.3,2766.2,1.83816]
[1739558798792,1.80657,2766.8,2766.5,0.72267]
[1739558798993,0.72266,2766.6,2766.5,0.72267]
[1739558800103,40.8,2766.7,2766.4,3.2078]
[1739558800290,41.52264,2766.7,2766.6,0.72266]
[1739558800490,40.8,2766.7,2766.6,0.72266]
[1739558800690,41.52263,2766.7,2766.6,0.72266]
[1739558800895,40.8,2766.7,2766.6,0.72266]
[1739558801498,41.52263,2766.7,2766.6,0.72266]
[1739558801691,0.72267,2766.6,2766.5,0.72266]
[1739558802795,40.8,2766.7,2766.4,3.2078]
[1739558802995,0.72268,2766.5,2766.4,3.93051]
[1739558803191,0.72268,2766.5,2766.4,3.2078]
[1739558804090,40.8,2766.7,2766.2,1.1154]
[1739558804294,5.01433,2766.8,2765.9,0.72283]
[1739558804295,0.72281,2766.0,2765.9,0.72283]
[1739558804596,0.72281,2766.0,2765.9,0.5337]
[1739558804792,41.52281,2766.0,2765.9,0.5337]
[1739558805396,41.52281,2766.0,2765.9,1.25654]
[1739558807002,41.52281,2766.0,2765.9,0.5337]
[1739558807200,0.72284,2765.9,2765.8,0.5591]
[1739558810494,3.2078,2766.5,2765.8,0.5591]
[1739558810696,0.72279,2766.2,2766.1,0.72277]
[1739558810901,41.52279,2766.2,2766.1,0.72277]
[1739558811208,40.8,2766.2,2765.9,0.72283]
[1739558811501,40.8,2766.2,2765.8,0.5591]
[1739558811703,40.8,2766.2,2766.1,0.72279]
[1739558812005,0.72275,2766.3,2766.2,0.72274]
[1739558812204,0.72268,2766.6,2766.5,0.72267]
[1739558812403,0.72273,2766.4,2766.3,0.7227]
[1739558813103,0.7227,2766.5,2766.4,0.72268]
[1739558813305,0.7227,2766.5,2766.4,3.93048]
[1739558813700,0.7227,2766.5,2766.4,3.2078]
[1739558813906,0.7227,2766.5,2766.4,3.93051]
[1739558815805,0.7227,2766.5,2766.4,3.2078]
[1739558816008,0.7227,2766.5,2766.4,3.93051]
[1739558818510,40.8,2766.6,2766.5,0.72268]
[1739558818812,41.52266,2766.6,2766.5,0.72268]
[1739558819009,40.8,2766.6,2766.5,0.72268]
[1739558819310,40.8,2766.6,2766.5,4.03482274]
[1739558820909,41.52266,2766.6,2766.5,4.03482274]
[1739558821105,1.81181761,2767.0,2766.5,3.31214274]
[1739558821106,0.72264,2766.7,2766.5,3.31214274]
[1739558821308,0.72264,2766.7,2766.6,0.72266]
[1739558821612,41.52264,2766.7,2766.6,0.72266]
[1739558821812,40.8,2766.7,2766.6,0.72266]
[1739558822013,40.8,2766.7,2766.6,1.28646]
[1739558822900,0.00541761,2767.0,2766.9,0.72258]
[1739558823105,0.00541761,2767.0,2766.9,8.45452274]
[1739558823304,0.72241,2767.6,2767.5,0.72242]
[1739558823507,3.7428,2768.0,2767.4,2.77414274]
[1739558823909,40.8,2767.9,2767.4,2.77414274]
[1739558824102,40.8,2767.9,2767.7,2.77414274]
[1739558824401,40.8,2767.9,2767.8,0.72234]
[1739558825308,0.00538461,2768.1,2768.0,0.72229]
[1739558825507,0.72212,2768.7,2768.0,7.73194274]
[1739558825707,41.52213,2768.6,2768.3,4.19299014]
[1739558826010,40.8,2768.6,2768.4,0.72218]
[1739558826211,40.8,2768.6,2768.4,0.72217]
[1739558826503,40.8,2768.6,2768.3,4.05149014]
[1739558827010,40.8,2768.6,2768.5,0.72216]
[1739558827207,40.8,2768.6,2768.5,3.92996]
[1739558827602,40.8,2768.6,2768.5,5.67996]
[1739558828903,40.8,2768.6,2768.5,4.9568]
[1739558829308,41.52216,2768.6,2768.3,2.3297]
[1739558829609,40.8,2768.6,2768.5,0.72216]
[1739558830810,40.8,2768.6,2768.5,1.30346]
[1739558831010,40.8,2768.6,2768.5,0.72216]
[1739558833716,15.43714246,2769.2,2768.4,3.2078]
[1739558833920,15.43714246,2769.2,2769.1,0.722]
[1739558834306,56.23714246,2769.2,2769.1,0.722]
[1739558834511,40.8,2769.2,2769.1,0.722]
[1739558834706,2.6679,2769.8,2769.1,0.722]
[1739558834707,0.9189,2769.8,2769.1,4.19279014]
[1739558834911,0.72186,2769.7,2769.5,0.72188]
[1739558835116,0.582,2769.8,2769.2,5.01813761]
[1739558835317,40.8,2769.6,2769.5,0.7219]
[1739558835525,0.7219,2769.5,2769.4,0.72191]
[1739558836112,40.8,2769.6,2769.2,3.21321761]
[1739558836314,41.52189,2769.6,2769.2,3.21321761]
[1739558836517,0.72192,2769.5,2769.2,3.21321761]
[1739558836717,0.72192,2769.5,2769.4,0.72193]
[1739558837119,40.8,2769.6,2769.2,3.21321761]
[1739558837319,41.52189,2769.6,2769.2,3.21321761]
[1739558837516,0.72195,2769.3,2769.2,3.93518761]
[1739558837723,0.72195,2769.3,2769.2,0.00541761]
[1739558837914,0.72195,2769.3,2769.2,0.72739761]
[1739558838234,0.72195,2769.3,2769.2,0.00541761]
[1739558838414,41.52195,2769.3,2769.2,0.00541761]
[1739558838920,41.52195,2769.3,2769.2,0.72739761]
[1739558839124,40.8,2769.3,2769.2,0.72739761]
[1739558839313,40.8,2769.3,2769.2,0.00541761]
[1739558839519,41.52195,2769.3,2769.2,0.00541761]
[1739558839919,41.52195,2769.3,2769.2,0.72739761]
[1739558840117,41.52195,2769.3,2769.2,0.00541761]
[1739558840415,40.8,2769.3,2769.2,3.93519761]
[1739558841018,41.52195,2769.3,2769.2,3.93519761]
[1739558841415,41.52195,2769.3,2769.2,3.21321761]
[1739558842518,41.52195,2769.3,2769.2,3.93519761]
[1739558842813,40.8,2769.3,2769.2,3.93519761]
[1739558843021,41.52195,2769.3,2769.2,3.93519761]
[1739558844024,40.8,2769.3,2769.2,3.93519761]
[1739558845820,41.52195,2769.3,2769.2,3.93519761]
[1739558846021,41.52195,2769.3,2769.2,3.21321761]
[1739558846221,41.52195,2769.3,2769.2,0.00541761]
[1739558846821,41.52195,2769.3,2768.6,3.2078]
[1739558846822,40.8,2769.3,2768.6,3.2078]
[1739558847121,0.72215,2768.6,2768.5,0.72214]
[1739558847323,0.72218,2768.5,2768.4,0.72217]
[1739558847716,0.72215,2768.6,2768.5,0.72214]
[1739558848122,0.00541761,2768.8,2768.3,8.28001953]
[1739558848322,0.00541761,2768.8,2768.7,0.72211]
[1739558848323,0.72750761,2768.8,2768.7,0.72211]
[1739558849221,0.00541761,2768.8,2768.7,0.72211]
[1739558850227,0.72749761,2768.8,2768.7,0.72211]
[1739558850427,0.00541761,2768.8,2768.7,0.72211]
[1739558851826,0.72749761,2768.8,2768.7,0.72211]
[1739558852029,0.00541761,2768.8,2768.7,0.72211]
[1739558852222,0.00541761,2768.8,2768.6,5.97780192]
[1739558852424,0.72211,2768.7,2768.6,6.69992192]
[1739558852728,0.72211,2768.7,2768.6,6.69993192]
[1739558853123,0.00541761,2768.8,2768.7,0.72211]
[1739558853828,0.72750761,2768.8,2768.6,5.97780192]
[1739558854026,0.00541761,2768.8,2768.7,0.72211]
[1739558854530,0.72749761,2768.8,2768.7,0.72211]
[1739558854828,0.72211,2768.7,2768.6,6.69991192]
[1739558855123,0.72211,2768.7,2768.6,5.97780192]
[1739558855328,0.72211,2768.7,2768.6,6.69993192]
[1739558855525,0.72211,2768.7,2768.6,5.97780192]
[1739558855728,0.72211,2768.7,2768.6,6.69993192]
[1739558856227,0.72211,2768.7,2768.6,5.97780192]
[1739558856427,0.72211,2768.7,2768.6,6.69993192]
[1739558857020,0.72211,2768.7,2768.6,5.97780192]
[1739558857322,0.72211,2768.7,2768.6,6.69993192]
[1739558858329,0.72219,2768.4,2768.3,0.00541761]
[1739558858524,3.2078,2768.5,2768.0,2.77000192]
[1739558858727,3.2078,2768.5,2767.8,3.2078]
[1739558858928,40.8,2768.3,2767.8,3.2078]
[1739558859128,0.7223,2768.0,2767.9,0.7223]
[1739558859332,0.72232,2767.9,2767.8,3.2078]
[1739558859531,0.72232,2767.9,2767.8,3.93014]
[1739558859731,40.8,2768.3,2767.9,0.72231]